[Event "*** SCC Grand Prix: Titled Tuesday Blitz"]
[Site "Chess.com"]
[Date "2020.06.23"]
[Round "9"]
[White "nrvisakh"]
[Black "olksuna"]
[Result "1-0"]
[WhiteElo "2786"]
[BlackElo "2613"]
[TimeControl "180+1"]
[EndTime "11:47:39 PDT"]
[Termination "nrvisakh won on time"]

1. d4 {[%clk 0:03:00.9]} 1... Nf6 {[%clk 0:02:56.5]} 2. c4 {[%clk 0:02:54.4]}
2... e6 {[%clk 0:02:55.9]} 3. Nc3 {[%clk 0:02:51.7]} 3... d5 {[%clk 0:02:54.6]}
4. Nf3 {[%clk 0:02:34.9]} 4... c5 {[%clk 0:02:52.9]} 5. cxd5 {[%clk 0:02:32.4]}
5... Nxd5 {[%clk 0:02:53.8]} 6. e3 {[%clk 0:02:30.7]} 6... Nc6 {[%clk
0:02:50.8]} 7. Bd3 {[%clk 0:02:29.3]} 7... Be7 {[%clk 0:02:46.5]} 8. O-O {[%clk
0:02:28.5]} 8... O-O {[%clk 0:02:46.7]} 9. Qe2 {[%clk 0:02:28.5]} 9... cxd4
{[%clk 0:02:43.5]} 10. exd4 {[%clk 0:02:28.3]} 10... Bf6 {[%clk 0:02:44]} 11.
Rd1 {[%clk 0:02:27.3]} 11... Nce7 {[%clk 0:02:35.9]} 12. Ne4 {[%clk 0:02:16.1]}
12... b6 {[%clk 0:02:32.3]} 13. Nxf6+ {[%clk 0:01:51.2]} 13... Nxf6 {[%clk
0:02:33.2]} 14. Bg5 {[%clk 0:01:52.1]} 14... Bb7 {[%clk 0:02:32.8]} 15. Ne5
{[%clk 0:01:50.4]} 15... Qd5 {[%clk 0:02:28.6]} 16. f3 {[%clk 0:01:47.4]} 16...
Nf5 {[%clk 0:01:40]} 17. Bxf6 {[%clk 0:01:41.4]} 17... gxf6 {[%clk 0:01:35.5]}
18. Ng4 {[%clk 0:01:35.3]} 18... Qxd4+ {[%clk 0:01:19.8]} 19. Kh1 {[%clk
0:01:34.4]} 19... Qf4 {[%clk 0:01:11.7]} 20. Nxf6+ {[%clk 0:01:31.3]} 20... Kh8
{[%clk 0:01:11.9]} 21. Nh5 {[%clk 0:01:29.7]} 21... Qe3 {[%clk 0:01:00.3]} 22.
Qxe3 {[%clk 0:01:15]} 22... Nxe3 {[%clk 0:01:01.2]} 23. Re1 {[%clk 0:01:15.9]}
23... Nd5 {[%clk 0:00:57.2]} 24. Be4 {[%clk 0:01:16]} 24... Rac8 {[%clk
0:00:49.8]} 25. Rad1 {[%clk 0:01:13.5]} 25... Rfd8 {[%clk 0:00:46.5]} 26. h4
{[%clk 0:01:12.2]} 26... Rc4 {[%clk 0:00:37.6]} 27. Kh2 {[%clk 0:01:05.4]} 27...
Rdc8 {[%clk 0:00:37.1]} 28. b3 {[%clk 0:01:03.1]} 28... R4c7 {[%clk 0:00:35.2]}
29. Rd2 {[%clk 0:00:54.8]} 29... Nc3 {[%clk 0:00:29.6]} 30. Bxb7 {[%clk
0:00:54]} 30... Rxb7 {[%clk 0:00:30.5]} 31. Nf6 {[%clk 0:00:48.7]} 31... Kg7
{[%clk 0:00:26.8]} 32. Nh5+ {[%clk 0:00:48.7]} 32... Kg6 {[%clk 0:00:25.5]} 33.
Nf4+ {[%clk 0:00:48.7]} 33... Kf6 {[%clk 0:00:26.1]} 34. g4 {[%clk 0:00:44.8]}
34... h6 {[%clk 0:00:25.7]} 35. Kg3 {[%clk 0:00:44.4]} 35... Rbc7 {[%clk
0:00:26.1]} 36. Nh5+ {[%clk 0:00:43.9]} 36... Ke7 {[%clk 0:00:25.2]} 37. Nf4
{[%clk 0:00:44.2]} 37... Kf6 {[%clk 0:00:25]} 38. Nh5+ {[%clk 0:00:43.2]} 38...
Ke7 {[%clk 0:00:25.3]} 39. Re3 {[%clk 0:00:40.5]} 39... Rc5 {[%clk 0:00:21]} 40.
Nf4 {[%clk 0:00:40]} 40... Kf6 {[%clk 0:00:21.4]} 41. Re1 {[%clk 0:00:36.4]}
41... Nd5 {[%clk 0:00:20.1]} 42. Nxd5+ {[%clk 0:00:27.7]} 42... Rxd5 {[%clk
0:00:21]} 43. Rxd5 {[%clk 0:00:21.5]} 43... exd5 {[%clk 0:00:21.9]} 44. Kf4
{[%clk 0:00:21.3]} 44... Rc2 {[%clk 0:00:20.4]} 45. Rd1 {[%clk 0:00:17.6]} 45...
Rxa2 {[%clk 0:00:13.2]} 46. Rxd5 {[%clk 0:00:17.1]} 46... Rb2 {[%clk 0:00:12.6]}
47. Rd6+ {[%clk 0:00:16.4]} 47... Kg7 {[%clk 0:00:12.3]} 48. Rd7 {[%clk
0:00:15.6]} 48... a5 {[%clk 0:00:10.7]} 49. Rd3 {[%clk 0:00:15.2]} 49... b5
{[%clk 0:00:07.2]} 50. g5 {[%clk 0:00:15.2]} 50... hxg5+ {[%clk 0:00:06.6]} 51.
hxg5 {[%clk 0:00:16.1]} 51... a4 {[%clk 0:00:06.1]} 52. bxa4 {[%clk 0:00:15.4]}
52... bxa4 {[%clk 0:00:07]} 53. Rd4 {[%clk 0:00:14.6]} 53... a3 {[%clk
0:00:06.9]} 54. Ra4 {[%clk 0:00:14.1]} 54... a2 {[%clk 0:00:07.8]} 55. Ra6
{[%clk 0:00:13.9]} 55... Rb4+ {[%clk 0:00:05.1]} 56. Kf5 {[%clk 0:00:12.4]}
56... Rb5+ {[%clk 0:00:05.4]} 57. Kg4 {[%clk 0:00:12.6]} 57... Rb4+ {[%clk
0:00:06.3]} 58. f4 {[%clk 0:00:12.8]} 58... Rb2 {[%clk 0:00:06]} 59. Ra7 {[%clk
0:00:12.9]} 59... Rg2+ {[%clk 0:00:05.3]} 60. Kf5 {[%clk 0:00:12.4]} 60... Rb2
{[%clk 0:00:06.2]} 61. Kg4 {[%clk 0:00:12.4]} 61... Rg2+ {[%clk 0:00:05.9]} 62.
Kf3 {[%clk 0:00:12.5]} 62... Rb2 {[%clk 0:00:06.8]} 63. f5 {[%clk 0:00:12.3]}
63... Rb3+ {[%clk 0:00:06.9]} 64. Kg4 {[%clk 0:00:12.4]} 64... Rb4+ {[%clk
0:00:07.2]} 65. Kh5 {[%clk 0:00:12.4]} 65... Rf4 {[%clk 0:00:05.4]} 66. f6+
{[%clk 0:00:12.3]} 66... Kg8 {[%clk 0:00:05.6]} 67. Rxa2 {[%clk 0:00:10.8]}
67... Rf5 {[%clk 0:00:02.6]} 68. Ra8+ {[%clk 0:00:10.3]} 68... Kh7 {[%clk
0:00:03.1]} 69. Ra7 {[%clk 0:00:10.4]} 69... Kg8 {[%clk 0:00:02.6]} 70. Kh6
{[%clk 0:00:10.3]} 1-0

[Event "*** SCC Grand Prix: Titled Tuesday Blitz"]
[Site "Chess.com"]
[Date "2020.06.23"]
[Round "9"]
[White "Makswolf200817"]
[Black "Violord"]
[Result "1-0"]
[WhiteElo "2450"]
[BlackElo "2611"]
[TimeControl "180+1"]
[EndTime "11:47:39 PDT"]
[Termination "Makswolf200817 won by resignation"]

1. Nf3 {[%clk 0:03:00.9]} 1... g6 {[%clk 0:02:58.8]} 2. c4 {[%clk 0:03:00.6]}
2... Bg7 {[%clk 0:02:58.3]} 3. g3 {[%clk 0:03:00.8]} 3... e5 {[%clk 0:02:58.3]}
4. Nc3 {[%clk 0:02:59.4]} 4... Ne7 {[%clk 0:02:58.1]} 5. Bg2 {[%clk 0:02:59.2]}
5... O-O {[%clk 0:02:58]} 6. d4 {[%clk 0:02:56.8]} 6... exd4 {[%clk 0:02:57.1]}
7. Nxd4 {[%clk 0:02:57.7]} 7... Nbc6 {[%clk 0:02:57.3]} 8. Nc2 {[%clk
0:02:55.7]} 8... d6 {[%clk 0:02:55.2]} 9. O-O {[%clk 0:02:55.2]} 9... a5 {[%clk
0:02:54.8]} 10. Bd2 {[%clk 0:02:52.7]} 10... a4 {[%clk 0:02:46.3]} 11. Na3
{[%clk 0:02:47.1]} 11... Be6 {[%clk 0:02:30.9]} 12. Nxa4 {[%clk 0:02:35.4]}
12... d5 {[%clk 0:02:24.7]} 13. cxd5 {[%clk 0:02:26]} 13... Nxd5 {[%clk
0:02:23.4]} 14. Nb5 {[%clk 0:02:08.2]} 14... b6 {[%clk 0:02:06.4]} 15. Nac3
{[%clk 0:02:05.6]} 15... Nce7 {[%clk 0:01:41.9]} 16. a3 {[%clk 0:01:45.8]} 16...
c5 {[%clk 0:01:35]} 17. Rc1 {[%clk 0:01:41.1]} 17... Qd7 {[%clk 0:01:31]} 18.
Nxd5 {[%clk 0:01:36.4]} 18... Nxd5 {[%clk 0:01:28.6]} 19. Nc3 {[%clk 0:01:36.8]}
19... Rad8 {[%clk 0:01:27.2]} 20. Nxd5 {[%clk 0:01:31.7]} 20... Bxd5 {[%clk
0:01:26.3]} 21. e4 {[%clk 0:01:20.6]} 21... Bc6 {[%clk 0:01:20.4]} 22. Bc3
{[%clk 0:01:17.1]} 22... Bxc3 {[%clk 0:01:12.3]} 23. Qxd7 {[%clk 0:01:12.8]}
23... Rxd7 {[%clk 0:01:13]} 24. Rxc3 {[%clk 0:01:13.4]} 24... Bb5 {[%clk
0:01:05.1]} 25. Rfc1 {[%clk 0:01:09.4]} 25... Rd2 {[%clk 0:01:03]} 26. R3c2
{[%clk 0:01:04.2]} 26... Rfd8 {[%clk 0:01:01.2]} 27. Bf3 {[%clk 0:01:03.8]}
27... Ba4 {[%clk 0:01:00]} 28. Rxd2 {[%clk 0:01:01.7]} 28... Rxd2 {[%clk
0:00:59.8]} 29. b4 {[%clk 0:01:02.4]} 29... cxb4 {[%clk 0:00:51.7]} 30. axb4
{[%clk 0:01:03.3]} 30... Rb2 {[%clk 0:00:51.1]} 31. Rc4 {[%clk 0:01:02.7]} 31...
Bb5 {[%clk 0:00:49.5]} 32. Rc8+ {[%clk 0:00:50.1]} 32... Kg7 {[%clk 0:00:49.7]}
33. Kg2 {[%clk 0:00:42.3]} 33... Rxb4 {[%clk 0:00:50.2]} 34. Rb8 {[%clk
0:00:42.1]} 34... Bc4 {[%clk 0:00:50]} 35. e5 {[%clk 0:00:40.3]} 35... Rb2
{[%clk 0:00:49]} 36. Rb7 {[%clk 0:00:37.7]} 36... h5 {[%clk 0:00:48.2]} 37. h3
{[%clk 0:00:34.6]} 37... b5 {[%clk 0:00:45.9]} 38. g4 {[%clk 0:00:34.6]} 38...
h4 {[%clk 0:00:45.4]} 39. Be4 {[%clk 0:00:25.2]} 39... b4 {[%clk 0:00:44.8]} 40.
Kf3 {[%clk 0:00:24.9]} 40... b3 {[%clk 0:00:42.7]} 41. Ke3 {[%clk 0:00:22.8]}
41... Be6 {[%clk 0:00:36.9]} 42. f4 {[%clk 0:00:21.8]} 42... Rh2 {[%clk
0:00:36.1]} 43. f5 {[%clk 0:00:20.9]} 43... gxf5 {[%clk 0:00:35.3]} 44. gxf5
{[%clk 0:00:21.8]} 44... Rxh3+ {[%clk 0:00:34.8]} 45. Kf4 {[%clk 0:00:22.3]}
45... Bc4 {[%clk 0:00:31.9]} 46. Rc7 {[%clk 0:00:21.2]} 46... Bd3 {[%clk
0:00:22.4]} 47. Bxd3 {[%clk 0:00:17.4]} 47... Rxd3 {[%clk 0:00:21.6]} 48. e6
{[%clk 0:00:17.9]} 48... h3 {[%clk 0:00:20.4]} 49. Rxf7+ {[%clk 0:00:17.8]}
49... Kg8 {[%clk 0:00:20.6]} 50. f6 {[%clk 0:00:11.3]} 50... h2 {[%clk
0:00:20.1]} 51. Rg7+ {[%clk 0:00:11.7]} 51... Kh8 {[%clk 0:00:20]} 52. e7 {[%clk
0:00:11.9]} 52... Rd4+ {[%clk 0:00:18.5]} 53. Ke5 {[%clk 0:00:10.1]} 53... Re4+
{[%clk 0:00:18.5]} 54. Kxe4 {[%clk 0:00:07.6]} 54... h1=Q+ {[%clk 0:00:17.8]}
55. Kf5 {[%clk 0:00:06.6]} 55... Qf1+ {[%clk 0:00:16.2]} 56. Kg6 {[%clk
0:00:06.3]} 56... Qd3+ {[%clk 0:00:15.7]} 57. Kf7 {[%clk 0:00:05.7]} 57... Qd5+
{[%clk 0:00:14.9]} 58. Kf8 {[%clk 0:00:05.3]} 58... Qd6 {[%clk 0:00:14.1]} 59.
Kf7 {[%clk 0:00:04.5]} 59... Qd7 {[%clk 0:00:10.9]} 60. Kg6 {[%clk 0:00:03.9]}
60... Qe8+ {[%clk 0:00:07.2]} 61. f7 {[%clk 0:00:02.5]} 61... Qc6+ {[%clk
0:00:07.1]} 62. Kh5 {[%clk 0:00:02.3]} 62... Kxg7 {[%clk 0:00:05.1]} 63. f8=Q+
{[%clk 0:00:02.5]} 63... Kh7 {[%clk 0:00:04.4]} 64. Qf7+ {[%clk 0:00:02]} 64...
Kh8 {[%clk 0:00:01.5]} 65. e8=Q+ {[%clk 0:00:02.9]} 65... Qxe8 {[%clk
0:00:01.4]} 66. Qxe8+ {[%clk 0:00:03.8]} 66... Kg7 {[%clk 0:00:02]} 67. Qe7+
{[%clk 0:00:03.8]} 1-0

[Event "*** SCC Grand Prix: Titled Tuesday Blitz"]
[Site "Chess.com"]
[Date "2020.06.23"]
[Round "9"]
[White "mbachez"]
[Black "Vuk2000"]
[Result "1/2-1/2"]
[WhiteElo "2458"]
[BlackElo "2629"]
[TimeControl "180+1"]
[EndTime "11:47:42 PDT"]
[Termination "Game drawn - insufficient material"]

1. e4 {[%clk 0:03:00.9]} 1... e6 {[%clk 0:02:59.9]} 2. d4 {[%clk 0:03:00.3]}
2... d5 {[%clk 0:03:00.2]} 3. Bd3 {[%clk 0:03:00.6]} 3... dxe4 {[%clk
0:02:51.1]} 4. Bxe4 {[%clk 0:03:01.5]} 4... Nf6 {[%clk 0:02:51.6]} 5. Bf3 {[%clk
0:03:01.9]} 5... c5 {[%clk 0:02:51.3]} 6. Ne2 {[%clk 0:03:02.2]} 6... Nc6 {[%clk
0:02:51.2]} 7. Be3 {[%clk 0:03:01.3]} 7... Nd5 {[%clk 0:02:48.4]} 8. Bxd5 {[%clk
0:02:56.5]} 8... Qxd5 {[%clk 0:02:47.3]} 9. Nbc3 {[%clk 0:02:55.4]} 9... Qd8
{[%clk 0:02:01.3]} 10. dxc5 {[%clk 0:02:53.6]} 10... Bd7 {[%clk 0:01:59.5]} 11.
Ne4 {[%clk 0:02:50.6]} 11... Ne5 {[%clk 0:01:54.1]} 12. Bf4 {[%clk 0:02:42.2]}
12... Bc6 {[%clk 0:01:51.1]} 13. N2c3 {[%clk 0:02:35.8]} 13... Ng6 {[%clk
0:01:47.5]} 14. Nd6+ {[%clk 0:02:25.1]} 14... Bxd6 {[%clk 0:01:45.3]} 15. Bxd6
{[%clk 0:02:23.7]} 15... Bxg2 {[%clk 0:01:35.8]} 16. Rg1 {[%clk 0:02:23.7]}
16... Bc6 {[%clk 0:01:34.7]} 17. Qe2 {[%clk 0:02:19.3]} 17... Qf6 {[%clk
0:01:11.4]} 18. O-O-O {[%clk 0:02:18.5]} 18... Qf5 {[%clk 0:01:11]} 19. Nb5
{[%clk 0:02:10]} 19... f6 {[%clk 0:01:00.4]} 20. Nd4 {[%clk 0:02:00.7]} 20...
Qe4 {[%clk 0:00:58.3]} 21. Qxe4 {[%clk 0:01:57.2]} 21... Bxe4 {[%clk 0:00:59.2]}
22. Nxe6 {[%clk 0:01:57.4]} 22... Kf7 {[%clk 0:00:58.5]} 23. Nd4 {[%clk
0:01:54.8]} 23... Rhe8 {[%clk 0:00:51.3]} 24. f4 {[%clk 0:01:53.4]} 24... Nh4
{[%clk 0:00:48]} 25. Rg3 {[%clk 0:01:18.6]} 25... Nf5 {[%clk 0:00:36.6]} 26. Rb3
{[%clk 0:01:11.7]} 26... Nxd4 {[%clk 0:00:33.1]} 27. Rxd4 {[%clk 0:01:11.2]}
27... Bc6 {[%clk 0:00:33.6]} 28. Kd2 {[%clk 0:01:09.6]} 28... g6 {[%clk
0:00:28.7]} 29. Rh3 {[%clk 0:01:07.6]} 29... Kg7 {[%clk 0:00:26.3]} 30. Rdd3
{[%clk 0:01:05.3]} 30... Be4 {[%clk 0:00:21.5]} 31. Rde3 {[%clk 0:01:02.6]}
31... Rad8 {[%clk 0:00:21.6]} 32. b4 {[%clk 0:00:56.5]} 32... h5 {[%clk
0:00:20.3]} 33. c4 {[%clk 0:00:53.9]} 33... Kf7 {[%clk 0:00:19.2]} 34. Kc3
{[%clk 0:00:53.3]} 34... Bf5 {[%clk 0:00:17.2]} 35. Rhg3 {[%clk 0:00:51.8]}
35... h4 {[%clk 0:00:16.9]} 36. Rgf3 {[%clk 0:00:50]} 36... Bg4 {[%clk
0:00:15.7]} 37. Rxe8 {[%clk 0:00:49.9]} 37... Rxe8 {[%clk 0:00:16.6]} 38. Rf2
{[%clk 0:00:49.4]} 38... Re3+ {[%clk 0:00:16]} 39. Kb2 {[%clk 0:00:40.9]} 39...
Be6 {[%clk 0:00:11.9]} 40. Rc2 {[%clk 0:00:40.2]} 40... Re4 {[%clk 0:00:12.1]}
41. b5 {[%clk 0:00:40.1]} 41... Rxc4 {[%clk 0:00:04.9]} 42. a4 {[%clk
0:00:35.1]} 42... Rxa4 {[%clk 0:00:03.9]} 43. c6 {[%clk 0:00:33.8]} 43... Ra5
{[%clk 0:00:03.1]} 44. Rc5 {[%clk 0:00:30.9]} 44... bxc6 {[%clk 0:00:02.7]} 45.
bxc6 {[%clk 0:00:26.3]} 45... Rxc5 {[%clk 0:00:03.1]} 46. Bxc5 {[%clk
0:00:26.4]} 46... a6 {[%clk 0:00:03.3]} 47. Bd4 {[%clk 0:00:25.8]} 47... Bd5
{[%clk 0:00:03.4]} 48. Bf2 {[%clk 0:00:25.4]} 48... Bxc6 {[%clk 0:00:03.6]} 49.
Bxh4 {[%clk 0:00:25]} 49... Ke6 {[%clk 0:00:03.9]} 50. Kc3 {[%clk 0:00:25.3]}
50... a5 {[%clk 0:00:03.1]} 51. Kb3 {[%clk 0:00:25.2]} 51... a4+ {[%clk
0:00:03.2]} 52. Kb4 {[%clk 0:00:24.9]} 52... Kf5 {[%clk 0:00:03.5]} 53. Ka3
{[%clk 0:00:23.7]} 53... Bd7 {[%clk 0:00:02.8]} 54. Bg3 {[%clk 0:00:23.8]} 54...
Kg4 {[%clk 0:00:02.8]} 55. Kb4 {[%clk 0:00:24.1]} 55... g5 {[%clk 0:00:02.4]}
56. fxg5 {[%clk 0:00:23.7]} 56... Kxg5 {[%clk 0:00:02.8]} 57. Ka3 {[%clk
0:00:20.7]} 57... Kg4 {[%clk 0:00:03]} 58. Bd6 {[%clk 0:00:20.7]} 58... f5
{[%clk 0:00:03.1]} 59. Kb2 {[%clk 0:00:20.3]} 59... Kf3 {[%clk 0:00:03.4]} 60.
Ka1 {[%clk 0:00:20.1]} 60... Ke4 {[%clk 0:00:03.5]} 61. h4 {[%clk 0:00:19.4]}
61... Kd5 {[%clk 0:00:03.2]} 62. Bf4 {[%clk 0:00:19.5]} 62... Ke4 {[%clk
0:00:03.6]} 63. Bc1 {[%clk 0:00:19.4]} 63... f4 {[%clk 0:00:04]} 64. Bxf4 {[%clk
0:00:17.9]} 64... Kxf4 {[%clk 0:00:04.9]} 65. h5 {[%clk 0:00:18.3]} 65... Kg5
{[%clk 0:00:05.5]} 66. h6 {[%clk 0:00:18.7]} 66... Kxh6 {[%clk 0:00:06.4]} 67.
Kb2 {[%clk 0:00:18.6]} 67... a3+ {[%clk 0:00:07.3]} 68. Ka1 {[%clk 0:00:19.5]}
68... a2 {[%clk 0:00:08.2]} 69. Kb2 {[%clk 0:00:20.4]} 69... Be6 {[%clk
0:00:09.1]} 70. Ka1 {[%clk 0:00:21.2]} 70... Bf7 {[%clk 0:00:10]} 71. Kb2 {[%clk
0:00:22]} 71... a1=Q+ {[%clk 0:00:10.8]} 72. Kxa1 {[%clk 0:00:22.9]} 1/2-1/2